[Event "*** Titled Tuesday Blitz"]
[Site "Chess.com"]
[Date "2020.04.28"]
[Round "1"]
[White "VinzentSpitzl"]
[Black "GMStefanova"]
[Result "1-0"]
[WhiteElo "2378"]
[BlackElo "2653"]
[TimeControl "180+1"]
[EndTime "10:08:16 PDT"]
[Termination "VinzentSpitzl won by resignation"]

1. e4 {[%clk 0:03:00.3]} 1... e5 {[%clk 0:02:58.7]} 2. Nf3 {[%clk 0:02:59.6]}
2... Nc6 {[%clk 0:02:58.3]} 3. Bb5 {[%clk 0:02:59.1]} 3... a6 {[%clk 0:02:58.5]}
4. Ba4 {[%clk 0:02:59]} 4... g6 {[%clk 0:02:58.7]} 5. O-O {[%clk 0:02:57.2]}
5... Bg7 {[%clk 0:02:58.4]} 6. c3 {[%clk 0:02:56.8]} 6... b5 {[%clk 0:02:56.7]}
7. Bc2 {[%clk 0:02:52.5]} 7... Nge7 {[%clk 0:02:52.5]} 8. d4 {[%clk 0:02:51.6]}
8... exd4 {[%clk 0:02:51.9]} 9. cxd4 {[%clk 0:02:52.5]} 9... d6 {[%clk
0:02:51.9]} 10. Nc3 {[%clk 0:02:48.2]} 10... O-O {[%clk 0:02:51.2]} 11. Bf4
{[%clk 0:02:32.5]} 11... Bg4 {[%clk 0:02:49.5]} 12. d5 {[%clk 0:02:01]} 12...
Nd4 {[%clk 0:02:47.5]} 13. Qd3 {[%clk 0:01:53.1]} 13... Nxf3+ {[%clk 0:02:32.8]}
14. gxf3 {[%clk 0:01:53.3]} 14... Bh3 {[%clk 0:02:32.7]} 15. Rfe1 {[%clk
0:01:53.3]} 15... Nc8 {[%clk 0:02:25]} 16. Bg3 {[%clk 0:01:46.9]} 16... Nb6
{[%clk 0:02:24.3]} 17. f4 {[%clk 0:01:37.4]} 17... Nd7 {[%clk 0:02:21.9]} 18.
Rad1 {[%clk 0:01:33.7]} 18... Re8 {[%clk 0:02:15.8]} 19. Ne2 {[%clk 0:01:22.7]}
19... Nc5 {[%clk 0:02:11.9]} 20. Qe3 {[%clk 0:01:06.3]} 20... h5 {[%clk
0:02:04.4]} 21. Nd4 {[%clk 0:01:04.8]} 21... Bxd4 {[%clk 0:01:57.3]} 22. Qxd4
{[%clk 0:01:02.3]} 22... h4 {[%clk 0:01:55.6]} 23. e5 {[%clk 0:00:59.5]} 23...
hxg3 {[%clk 0:01:53.3]} 24. hxg3 {[%clk 0:00:56.5]} 24... Qd7 {[%clk 0:01:42.6]}
25. b4 {[%clk 0:00:44.2]} 25... Na4 {[%clk 0:01:39.7]} 26. e6 {[%clk 0:00:43.1]}
26... fxe6 {[%clk 0:01:10.4]} 27. Bxg6 {[%clk 0:00:42]} 27... Qg7 {[%clk
0:01:03.8]} 28. Qxg7+ {[%clk 0:00:34.3]} 28... Kxg7 {[%clk 0:01:03.5]} 29. Bxe8
{[%clk 0:00:35.2]} 29... Rxe8 {[%clk 0:01:03.5]} 30. dxe6 {[%clk 0:00:35.2]}
30... Rxe6 {[%clk 0:01:01.6]} 31. f3 {[%clk 0:00:32]} 31... Bf5 {[%clk
0:00:45.2]} 32. g4 {[%clk 0:00:27]} 32... Rxe1+ {[%clk 0:00:44.1]} 33. Rxe1
{[%clk 0:00:27.4]} 33... Bd3 {[%clk 0:00:43]} 34. Re7+ {[%clk 0:00:26]} 34...
Kf6 {[%clk 0:00:43]} 35. Rxc7 {[%clk 0:00:24.7]} 35... Bc4 {[%clk 0:00:43.3]}
36. Rc6 {[%clk 0:00:20.5]} 36... Nc3 {[%clk 0:00:40.4]} 37. Rxd6+ {[%clk
0:00:18.1]} 37... Ke7 {[%clk 0:00:40]} 38. Rxa6 {[%clk 0:00:17.9]} 38... Nxa2
{[%clk 0:00:40.1]} 39. f5 {[%clk 0:00:15.1]} 39... Nxb4 {[%clk 0:00:39.8]} 40.
Rb6 {[%clk 0:00:14.1]} 40... Nd5 {[%clk 0:00:38.2]} 41. Rb7+ {[%clk 0:00:13.3]}
41... Kf6 {[%clk 0:00:38.2]} 42. Kf2 {[%clk 0:00:13.6]} 42... b4 {[%clk
0:00:36.6]} 43. Kg3 {[%clk 0:00:13.9]} 43... Ke5 {[%clk 0:00:34.2]} 44. f4+
{[%clk 0:00:12.7]} 44... Nxf4 {[%clk 0:00:33.9]} 45. Rxb4 {[%clk 0:00:12.4]}
45... Ne2+ {[%clk 0:00:34]} 46. Kf2 {[%clk 0:00:10.7]} 46... Kd4 {[%clk
0:00:18.7]} 47. Rxc4+ {[%clk 0:00:09.5]} 47... Kxc4 {[%clk 0:00:17.7]} 48. Kxe2
{[%clk 0:00:09.9]} 48... Kd5 {[%clk 0:00:16.9]} 49. Kf3 {[%clk 0:00:10.2]} 49...
Ke5 {[%clk 0:00:17.1]} 50. Kg3 {[%clk 0:00:10.4]} 50... Kf6 {[%clk 0:00:16.8]}
51. Kf4 {[%clk 0:00:10.8]} 51... Kf7 {[%clk 0:00:16.6]} 52. g5 {[%clk
0:00:11.7]} 52... Kg7 {[%clk 0:00:16.8]} 53. Ke5 {[%clk 0:00:11.4]} 53... Kf7
{[%clk 0:00:16.8]} 54. g6+ {[%clk 0:00:11.1]} 54... Kg7 {[%clk 0:00:16.9]} 55.
Ke6 {[%clk 0:00:11.5]} 55... Kg8 {[%clk 0:00:13.1]} 56. f6 {[%clk 0:00:10.6]}
56... Kh8 {[%clk 0:00:13]} 57. g7+ {[%clk 0:00:09.7]} 57... Kg8 {[%clk
0:00:12.6]} 58. Ke7 {[%clk 0:00:09.3]} 58... Kh7 {[%clk 0:00:11.8]} 59. f7
{[%clk 0:00:09.7]} 59... Kxg7 {[%clk 0:00:10.7]} 60. f8=Q+ {[%clk 0:00:09.7]}
1-0

[Event "*** Titled Tuesday Blitz"]
[Site "Chess.com"]
[Date "2020.04.28"]
[Round "1"]
[White "SanQui14"]
[Black "bancsoo"]
[Result "0-1"]
[WhiteElo "2325"]
[BlackElo "2651"]
[TimeControl "180+1"]
[EndTime "10:08:18 PDT"]
[Termination "bancsoo won by resignation"]

1. d4 {[%clk 0:03:00.9]} 1... d5 {[%clk 0:02:59.4]} 2. Bf4 {[%clk 0:03:01.4]}
2... e6 {[%clk 0:02:59.4]} 3. e3 {[%clk 0:03:02]} 3... Nf6 {[%clk 0:02:54.2]} 4.
h3 {[%clk 0:02:59.8]} 4... c5 {[%clk 0:02:52]} 5. c3 {[%clk 0:02:59.9]} 5... Qb6
{[%clk 0:02:51.5]} 6. Qb3 {[%clk 0:02:59.7]} 6... Nc6 {[%clk 0:02:51.5]} 7. Nd2
{[%clk 0:02:57.6]} 7... Be7 {[%clk 0:02:49.8]} 8. Ngf3 {[%clk 0:02:57.5]} 8...
O-O {[%clk 0:02:44.3]} 9. Be2 {[%clk 0:02:55.4]} 9... Bd7 {[%clk 0:02:32.5]} 10.
O-O {[%clk 0:02:54.6]} 10... Rfd8 {[%clk 0:02:30]} 11. Qxb6 {[%clk 0:02:54]}
11... axb6 {[%clk 0:02:29.7]} 12. Bc7 {[%clk 0:02:54.1]} 12... Rdc8 {[%clk
0:02:29.9]} 13. Bxb6 {[%clk 0:02:53.6]} 13... c4 {[%clk 0:02:28.4]} 14. b4
{[%clk 0:02:44.8]} 14... Be8 {[%clk 0:02:15.6]} 15. a4 {[%clk 0:02:42.8]} 15...
Nd7 {[%clk 0:02:11]} 16. Bc5 {[%clk 0:02:38.8]} 16... Nxc5 {[%clk 0:01:58.9]}
17. dxc5 {[%clk 0:02:39.7]} 17... f5 {[%clk 0:01:49.7]} 18. Nd4 {[%clk
0:02:34.3]} 18... Bd7 {[%clk 0:01:45.4]} 19. N2f3 {[%clk 0:02:30.1]} 19... Bf6
{[%clk 0:01:44.4]} 20. Bd1 {[%clk 0:02:20.3]} 20... g5 {[%clk 0:01:37.5]} 21.
Bc2 {[%clk 0:02:16.9]} 21... h5 {[%clk 0:01:33.1]} 22. Nd2 {[%clk 0:01:47.9]}
22... f4 {[%clk 0:01:22.1]} 23. Bg6 {[%clk 0:01:40.5]} 23... e5 {[%clk
0:00:43.3]} 24. Nxc6 {[%clk 0:01:36]} 24... Bxc6 {[%clk 0:00:39.5]} 25. Bxh5
{[%clk 0:01:25]} 25... Bxa4 {[%clk 0:00:34.8]} 26. Bg4 {[%clk 0:01:21.1]} 26...
Rd8 {[%clk 0:00:31.5]} 27. Ra3 {[%clk 0:01:12.8]} 27... Be8 {[%clk 0:00:23.9]}
28. Rfa1 {[%clk 0:01:11.8]} 28... Rxa3 {[%clk 0:00:23.6]} 29. Rxa3 {[%clk
0:01:12.7]} 29... e4 {[%clk 0:00:24.1]} 30. Kf1 {[%clk 0:01:07.1]} 30... Kf8
{[%clk 0:00:24]} 31. Ke2 {[%clk 0:01:06.7]} 31... Bf7 {[%clk 0:00:18.6]} 32. Kd1
{[%clk 0:01:06.1]} 32... Rb8 {[%clk 0:00:19]} 33. Kc2 {[%clk 0:01:05.3]} 33...
Ke7 {[%clk 0:00:19.1]} 34. Ra7 {[%clk 0:01:04.6]} 34... Kf8 {[%clk 0:00:18.9]}
35. Nb1 {[%clk 0:01:02]} 35... Be8 {[%clk 0:00:13.1]} 36. Be6 {[%clk 0:00:55.4]}
36... Bc6 {[%clk 0:00:13.1]} 37. Na3 {[%clk 0:00:51.6]} 37... Ke7 {[%clk
0:00:10]} 38. Bg4 {[%clk 0:00:49.6]} 38... Kd8 {[%clk 0:00:10.5]} 39. b5 {[%clk
0:00:47.3]} 39... Be8 {[%clk 0:00:10.9]} 40. Be6 {[%clk 0:00:46.1]} 40... Be7
{[%clk 0:00:11.5]} 41. Bxd5 {[%clk 0:00:44.6]} 41... Bxc5 {[%clk 0:00:11.8]} 42.
Ra4 {[%clk 0:00:28.3]} 42... fxe3 {[%clk 0:00:12.1]} 43. fxe3 {[%clk 0:00:27.6]}
43... Bxa3 {[%clk 0:00:12.7]} 44. Rxa3 {[%clk 0:00:27.2]} 44... Bxb5 {[%clk
0:00:13.5]} 45. Bxe4 {[%clk 0:00:26.9]} 45... Kc7 {[%clk 0:00:14.2]} 46. Ra5
{[%clk 0:00:26.4]} 46... Kb6 {[%clk 0:00:14.4]} 47. Ra1 {[%clk 0:00:26.1]} 47...
Re8 {[%clk 0:00:14.9]} 48. Bf3 {[%clk 0:00:25.1]} 48... Rxe3 {[%clk 0:00:15.3]}
49. Rb1 {[%clk 0:00:25.7]} 49... Kc5 {[%clk 0:00:14]} 50. Bxb7 {[%clk
0:00:24.6]} 50... Ba4+ {[%clk 0:00:14.5]} 51. Kd2 {[%clk 0:00:24]} 51... Rd3+
{[%clk 0:00:14.8]} 52. Ke2 {[%clk 0:00:23.6]} 52... Rxc3 {[%clk 0:00:15.6]} 53.
Be4 {[%clk 0:00:22.4]} 53... Bc2 {[%clk 0:00:15.2]} 54. Bxc2 {[%clk 0:00:12.9]}
54... Rxc2+ {[%clk 0:00:16.1]} 55. Kf3 {[%clk 0:00:13.4]} 55... c3 {[%clk
0:00:16.7]} 56. g4 {[%clk 0:00:12.7]} 56... Rd2 {[%clk 0:00:15.9]} 57. Ke3
{[%clk 0:00:12.8]} 57... Kc4 {[%clk 0:00:16.2]} 58. Rc1 {[%clk 0:00:13]} 58...
Rd8 {[%clk 0:00:15.6]} 59. h4 {[%clk 0:00:13.5]} 59... gxh4 {[%clk 0:00:15.4]}
60. g5 {[%clk 0:00:13.3]} 60... h3 {[%clk 0:00:15.8]} 61. g6 {[%clk 0:00:13.5]}
61... Rg8 {[%clk 0:00:15.3]} 62. Rg1 {[%clk 0:00:12.7]} 62... c2 {[%clk
0:00:15.8]} 63. Kf4 {[%clk 0:00:13.2]} 63... Kb3 {[%clk 0:00:14.7]} 64. Kf5
{[%clk 0:00:12.5]} 64... Kb2 {[%clk 0:00:14.6]} 65. Kf6 {[%clk 0:00:12]} 65...
c1=Q {[%clk 0:00:14.9]} 66. Rxc1 {[%clk 0:00:12.9]} 66... Kxc1 {[%clk
0:00:15.6]} 0-1

[Event "*** Titled Tuesday Blitz"]
[Site "Chess.com"]
[Date "2020.04.28"]
[Round "1"]
[White "Angel_Hranitel_37"]
[Black "Kezin_Roman"]
[Result "1/2-1/2"]
[WhiteElo "2365"]
[BlackElo "2686"]
[TimeControl "180+1"]
[EndTime "10:08:20 PDT"]
[Termination "Game drawn by repetition"]

1. d4 {[%clk 0:02:59.9]} 1... d5 {[%clk 0:02:59.7]} 2. c4 {[%clk 0:02:59.8]}
2... e6 {[%clk 0:03:00.2]} 3. Nf3 {[%clk 0:03:00]} 3... Nf6 {[%clk 0:03:00.4]}
4. g3 {[%clk 0:02:59.9]} 4... Be7 {[%clk 0:03:00.7]} 5. Bg2 {[%clk 0:03:00.4]}
5... O-O {[%clk 0:03:01.3]} 6. O-O {[%clk 0:03:01]} 6... dxc4 {[%clk 0:03:01.9]}
7. Ne5 {[%clk 0:03:00.7]} 7... c5 {[%clk 0:03:01.8]} 8. dxc5 {[%clk 0:02:56.8]}
8... Qc7 {[%clk 0:03:02.1]} 9. Nxc4 {[%clk 0:02:56.5]} 9... Qxc5 {[%clk
0:03:02.5]} 10. b3 {[%clk 0:02:57.1]} 10... Rd8 {[%clk 0:03:00.8]} 11. Nbd2
{[%clk 0:02:57.5]} 11... Nc6 {[%clk 0:03:00.6]} 12. Ba3 {[%clk 0:02:53.5]} 12...
Nb4 {[%clk 0:02:59.2]} 13. Rc1 {[%clk 0:02:49.8]} 13... Qh5 {[%clk 0:02:24.3]}
14. e4 {[%clk 0:02:48.3]} 14... Qxd1 {[%clk 0:02:10.1]} 15. Rfxd1 {[%clk
0:02:49.2]} 15... Bd7 {[%clk 0:01:58.2]} 16. Ne3 {[%clk 0:01:35.9]} 16... Bc6
{[%clk 0:01:53]} 17. e5 {[%clk 0:01:31.1]} 17... Nfd5 {[%clk 0:01:13.6]} 18.
Nxd5 {[%clk 0:01:29.9]} 18... Nxd5 {[%clk 0:01:08.7]} 19. Bxe7 {[%clk 0:01:07]}
19... Nxe7 {[%clk 0:01:09.6]} 20. Ne4 {[%clk 0:01:07.4]} 20... Nf5 {[%clk
0:00:59.1]} 21. Nd6 {[%clk 0:00:56.2]} 21... Bxg2 {[%clk 0:00:56.2]} 22. Kxg2
{[%clk 0:00:50.3]} 22... Nxd6 {[%clk 0:00:37]} 23. exd6 {[%clk 0:00:51.2]} 23...
Rd7 {[%clk 0:00:33.4]} 24. Rc7 {[%clk 0:00:23.3]} 24... Rad8 {[%clk 0:00:32.3]}
25. Rd4 {[%clk 0:00:14.5]} 25... g6 {[%clk 0:00:20.9]} 26. Rb4 {[%clk
0:00:14.8]} 26... b6 {[%clk 0:00:19.8]} 27. Ra4 {[%clk 0:00:15]} 27... a5 {[%clk
0:00:17.6]} 28. Rxd7 {[%clk 0:00:08.2]} 28... Rxd7 {[%clk 0:00:18.5]} 29. Rd4
{[%clk 0:00:09.1]} 29... Kg7 {[%clk 0:00:19]} 30. Kf3 {[%clk 0:00:09.4]} 30...
Kf6 {[%clk 0:00:19.6]} 31. Ke4 {[%clk 0:00:09.9]} 31... e5 {[%clk 0:00:19.3]}
32. Rd5 {[%clk 0:00:10.3]} 32... Ke6 {[%clk 0:00:19.7]} 33. Rxe5+ {[%clk
0:00:10.7]} 33... Kxd6 {[%clk 0:00:16.6]} 34. Rd5+ {[%clk 0:00:11.2]} 34... Ke6
{[%clk 0:00:16.9]} 35. Rxd7 {[%clk 0:00:12.1]} 35... Kxd7 {[%clk 0:00:17.8]} 36.
Kd5 {[%clk 0:00:12.7]} 36... h5 {[%clk 0:00:11.7]} 37. h3 {[%clk 0:00:11.7]}
37... Kc7 {[%clk 0:00:08.2]} 38. g4 {[%clk 0:00:10.7]} 38... hxg4 {[%clk
0:00:07.7]} 39. hxg4 {[%clk 0:00:11.6]} 39... Kd7 {[%clk 0:00:07.3]} 40. g5
{[%clk 0:00:11.7]} 40... Kc7 {[%clk 0:00:06.8]} 41. Ke5 {[%clk 0:00:11.8]} 41...
Kd7 {[%clk 0:00:07.3]} 42. Kf6 {[%clk 0:00:11.5]} 42... Ke8 {[%clk 0:00:07.7]}
43. f4 {[%clk 0:00:11.7]} 43... Kf8 {[%clk 0:00:07.7]} 44. Ke5 {[%clk
0:00:09.2]} 44... Ke7 {[%clk 0:00:07.2]} 45. a3 {[%clk 0:00:09]} 45... Kd7
{[%clk 0:00:06.8]} 46. Kd5 {[%clk 0:00:08.9]} 46... Kc7 {[%clk 0:00:06.6]} 47.
Ke5 {[%clk 0:00:08.3]} 47... Kd7 {[%clk 0:00:05.8]} 48. Kf6 {[%clk 0:00:07.8]}
48... Ke8 {[%clk 0:00:05.9]} 49. Ke5 {[%clk 0:00:04.5]} 49... Ke7 {[%clk
0:00:05.5]} 50. Kd5 {[%clk 0:00:05]} 50... Kd7 {[%clk 0:00:06]} 51. Ke5 {[%clk
0:00:05.6]} 51... Ke7 {[%clk 0:00:05.6]} 52. Kd5 {[%clk 0:00:06]} 52... Kd7
{[%clk 0:00:05.9]} 53. Ke5 {[%clk 0:00:06.5]} 53... Ke7 {[%clk 0:00:06.2]}
1/2-1/2

[Event "*** Titled Tuesday Blitz"]
[Site "Chess.com"]
[Date "2020.04.28"]
[Round "1"]
[White "ftorodent"]
[Black "Sunnika"]
[Result "1-0"]
[WhiteElo "2661"]
[BlackElo "2335"]
[TimeControl "180+1"]
[EndTime "10:08:26 PDT"]
[Termination "ftorodent won by resignation"]

1. d4 {[%clk 0:03:00.9]} 1... Nf6 {[%clk 0:02:59.7]} 2. c4 {[%clk 0:03:00]} 2...
g6 {[%clk 0:02:59.7]} 3. Nc3 {[%clk 0:02:58.4]} 3... Bg7 {[%clk 0:03:00.2]} 4.
e4 {[%clk 0:02:57.9]} 4... d6 {[%clk 0:03:00.7]} 5. Nf3 {[%clk 0:02:57.5]} 5...
O-O {[%clk 0:03:00]} 6. Be2 {[%clk 0:02:57.5]} 6... c5 {[%clk 0:03:00.6]} 7. O-O
{[%clk 0:02:53.4]} 7... Nc6 {[%clk 0:03:00.5]} 8. d5 {[%clk 0:02:49.6]} 8... Na5
{[%clk 0:03:00.9]} 9. Nd2 {[%clk 0:02:46.8]} 9... a6 {[%clk 0:02:57.2]} 10. Qc2
{[%clk 0:02:46.6]} 10... Rb8 {[%clk 0:02:46]} 11. a4 {[%clk 0:02:27]} 11... e5
{[%clk 0:02:44]} 12. b3 {[%clk 0:02:26]} 12... Ne8 {[%clk 0:02:38.7]} 13. Bb2
{[%clk 0:02:20.7]} 13... f5 {[%clk 0:02:36.9]} 14. exf5 {[%clk 0:02:20.4]} 14...
gxf5 {[%clk 0:02:37.8]} 15. f4 {[%clk 0:02:19.4]} 15... b6 {[%clk 0:02:35.2]}
16. Rae1 {[%clk 0:02:16.1]} 16... Nb7 {[%clk 0:02:18.5]} 17. Nd1 {[%clk
0:02:12.6]} 17... e4 {[%clk 0:02:10.2]} 18. Bxg7 {[%clk 0:01:59.4]} 18... Nxg7
{[%clk 0:02:11.1]} 19. Qc3 {[%clk 0:01:49.3]} 19... h5 {[%clk 0:02:06.3]} 20.
Ne3 {[%clk 0:01:45.7]} 20... Qf6 {[%clk 0:02:03.5]} 21. Qxf6 {[%clk 0:01:33.8]}
21... Rxf6 {[%clk 0:02:04.4]} 22. Kf2 {[%clk 0:01:33]} 22... Bd7 {[%clk
0:01:57.8]} 23. Rb1 {[%clk 0:01:30.1]} 23... a5 {[%clk 0:01:52.7]} 24. g3 {[%clk
0:01:22.6]} 24... Nd8 {[%clk 0:01:49]} 25. Ng2 {[%clk 0:01:19.7]} 25... Nf7
{[%clk 0:01:47.7]} 26. Rfe1 {[%clk 0:01:17.2]} 26... Nh6 {[%clk 0:01:48]} 27. h3
{[%clk 0:01:17.2]} 27... Kf7 {[%clk 0:01:45.1]} 28. Nf1 {[%clk 0:01:16.4]} 28...
Rg8 {[%clk 0:01:42.9]} 29. Nfe3 {[%clk 0:01:14.5]} 29... Ke8 {[%clk 0:01:34.8]}
30. Nh4 {[%clk 0:01:13.9]} 30... Kd8 {[%clk 0:01:33]} 31. Rg1 {[%clk 0:01:13.5]}
31... Kc7 {[%clk 0:01:27.4]} 32. Rbf1 {[%clk 0:01:08.9]} 32... Bc8 {[%clk
0:01:15]} 33. Ke1 {[%clk 0:01:07.1]} 33... Bd7 {[%clk 0:01:15.5]} 34. Kd2 {[%clk
0:01:04.1]} 34... Re8 {[%clk 0:01:08.8]} 35. g4 {[%clk 0:00:47.4]} 35... hxg4
{[%clk 0:01:06]} 36. hxg4 {[%clk 0:00:47.5]} 36... fxg4 {[%clk 0:01:05]} 37.
Bxg4 {[%clk 0:00:47.5]} 37... Nxg4 {[%clk 0:01:02.6]} 38. Nxg4 {[%clk
0:00:47.6]} 38... Bxg4 {[%clk 0:00:57.3]} 39. Rxg4 {[%clk 0:00:47.5]} 39... e3+
{[%clk 0:00:56.1]} 40. Ke2 {[%clk 0:00:46.9]} 40... Nf5 {[%clk 0:00:43]} 41.
Nxf5 {[%clk 0:00:43.7]} 41... Rxf5 {[%clk 0:00:43.9]} 42. Rf3 {[%clk 0:00:38.9]}
42... Re4 {[%clk 0:00:38.5]} 43. Rg7+ {[%clk 0:00:23]} 43... Kc8 {[%clk
0:00:33.5]} 44. Rh3 {[%clk 0:00:15.3]} 44... Rexf4 {[%clk 0:00:32.5]} 45. Rh8+
{[%clk 0:00:13.6]} 45... Rf8 {[%clk 0:00:32.3]} 46. Rxf8+ {[%clk 0:00:11.1]}
46... Rxf8 {[%clk 0:00:33.2]} 47. Kxe3 {[%clk 0:00:11.5]} 47... Rf1 {[%clk
0:00:31.6]} 48. Ke4 {[%clk 0:00:10.5]} 48... Re1+ {[%clk 0:00:18.6]} 49. Kf5
{[%clk 0:00:10]} 49... Re5+ {[%clk 0:00:18.1]} 50. Kf6 {[%clk 0:00:10.2]} 50...
Re3 {[%clk 0:00:17.4]} 51. Re7 {[%clk 0:00:09.4]} 51... Rxb3 {[%clk 0:00:04.5]}
52. Ke6 {[%clk 0:00:09.4]} 52... Rh3 {[%clk 0:00:03.4]} 53. Kxd6 {[%clk
0:00:08.8]} 53... Rh6+ {[%clk 0:00:03.9]} 54. Re6 {[%clk 0:00:07.3]} 54... Rh4
{[%clk 0:00:03.8]} 55. Kc6 {[%clk 0:00:06.5]} 55... Kd8 {[%clk 0:00:03.4]} 56.
d6 {[%clk 0:00:06.1]} 56... Rxc4 {[%clk 0:00:03.3]} 57. Rh6 {[%clk 0:00:05.9]}
57... Ke8 {[%clk 0:00:03.3]} 58. d7+ {[%clk 0:00:05.8]} 58... Ke7 {[%clk
0:00:02.2]} 59. Rh7+ {[%clk 0:00:06]} 59... Ke6 {[%clk 0:00:01.2]} 60. d8=Q
{[%clk 0:00:05.6]} 1-0

[Event "*** Titled Tuesday Blitz"]
[Site "Chess.com"]
[Date "2020.04.28"]
[Round "1"]
[White "CSB7"]
[Black "jucAxx"]
[Result "1-0"]
[WhiteElo "2502"]
[BlackElo "2086"]
[TimeControl "180+1"]
[EndTime "10:08:27 PDT"]
[Termination "CSB7 won by resignation"]

1. e4 {[%clk 0:03:00.5]} 1... e6 {[%clk 0:02:55.6]} 2. d4 {[%clk 0:02:59.8]}
2... d5 {[%clk 0:02:55.6]} 3. Nc3 {[%clk 0:03:00.4]} 3... Bb4 {[%clk 0:02:52.7]}
4. Ne2 {[%clk 0:03:00.5]} 4... dxe4 {[%clk 0:02:52]} 5. a3 {[%clk 0:02:59.6]}
5... Bxc3+ {[%clk 0:02:52.2]} 6. Nxc3 {[%clk 0:02:59]} 6... Nf6 {[%clk
0:02:52.5]} 7. Bg5 {[%clk 0:02:58.4]} 7... O-O {[%clk 0:02:44.2]} 8. Nxe4 {[%clk
0:02:54.4]} 8... Nbd7 {[%clk 0:02:44.2]} 9. Bd3 {[%clk 0:02:31.2]} 9... h6
{[%clk 0:02:43.1]} 10. Bh4 {[%clk 0:02:27]} 10... b6 {[%clk 0:02:43.1]} 11. Qf3
{[%clk 0:02:07.5]} 11... Rb8 {[%clk 0:02:38.9]} 12. O-O-O {[%clk 0:01:36.7]}
12... Bb7 {[%clk 0:02:03.8]} 13. Rhe1 {[%clk 0:01:36.9]} 13... Bxe4 {[%clk
0:01:41.7]} 14. Bxe4 {[%clk 0:01:33.3]} 14... g5 {[%clk 0:01:16]} 15. Bg3 {[%clk
0:01:31.8]} 15... Nxe4 {[%clk 0:01:16.1]} 16. Qxe4 {[%clk 0:01:24.9]} 16... Nf6
{[%clk 0:01:14.4]} 17. Qe5 {[%clk 0:01:21.3]} 17... Ne8 {[%clk 0:01:11.9]} 18.
h4 {[%clk 0:01:05.5]} 18... gxh4 {[%clk 0:01:07.6]} 19. Bf4 {[%clk 0:01:05]}
19... Qf6 {[%clk 0:01:05.4]} 20. Rh1 {[%clk 0:00:46.9]} 20... h5 {[%clk
0:00:57.1]} 21. Qxf6 {[%clk 0:00:25.6]} 21... Nxf6 {[%clk 0:00:55.4]} 22. Rxh4
{[%clk 0:00:26.2]} 22... Rbc8 {[%clk 0:00:53]} 23. Rd3 {[%clk 0:00:17.3]} 23...
Kh7 {[%clk 0:00:35.6]} 24. Be5 {[%clk 0:00:13.3]} 24... Ng4 {[%clk 0:00:26.9]}
25. Rg3 {[%clk 0:00:12.7]} 25... Kg6 {[%clk 0:00:15]} 26. f3 {[%clk 0:00:10.7]}
26... Kg5 {[%clk 0:00:13.5]} 27. Rh1 {[%clk 0:00:09.3]} 27... f6 {[%clk
0:00:05.7]} 28. fxg4 {[%clk 0:00:04.9]} 28... fxe5 {[%clk 0:00:05.6]} 29. gxh5+
{[%clk 0:00:05.5]} 29... Kh6 {[%clk 0:00:06.1]} 30. Rg6+ {[%clk 0:00:04.3]}
30... Kh7 {[%clk 0:00:05.6]} 31. dxe5 {[%clk 0:00:05]} 31... Rf5 {[%clk
0:00:04.2]} 32. Rxe6 {[%clk 0:00:05]} 32... Rcf8 {[%clk 0:00:04.2]} 33. Re7+
{[%clk 0:00:05.5]} 33... R8f7 {[%clk 0:00:02.8]} 34. Rxf7+ {[%clk 0:00:05.6]}
34... Rxf7 {[%clk 0:00:02.9]} 35. g4 {[%clk 0:00:06.2]} 35... Re7 {[%clk
0:00:02.7]} 36. g5 {[%clk 0:00:06.3]} 36... Rxe5 {[%clk 0:00:03.2]} 37. g6+
{[%clk 0:00:06.9]} 37... Kh6 {[%clk 0:00:03.8]} 38. b3 {[%clk 0:00:05.9]} 38...
Kg7 {[%clk 0:00:03.7]} 39. Kb2 {[%clk 0:00:06.4]} 39... Re8 {[%clk 0:00:03.8]}
40. a4 {[%clk 0:00:06.8]} 40... Kh6 {[%clk 0:00:04.3]} 41. Kc3 {[%clk
0:00:07.2]} 41... Re4 {[%clk 0:00:03.7]} 42. Rh2 {[%clk 0:00:06.8]} 42... Rg4
{[%clk 0:00:03.9]} 43. Kb2 {[%clk 0:00:05.9]} 43... c5 {[%clk 0:00:04]} 44. c3
{[%clk 0:00:06.1]} 44... a6 {[%clk 0:00:04.4]} 45. Ka3 {[%clk 0:00:06.4]} 45...
b5 {[%clk 0:00:04.8]} 46. axb5 {[%clk 0:00:07.3]} 46... axb5 {[%clk 0:00:05.6]}
47. Kb2 {[%clk 0:00:07.7]} 47... Rg3 {[%clk 0:00:05.5]} 48. Kc2 {[%clk
0:00:07.8]} 48... Rf3 {[%clk 0:00:05.4]} 49. Re2 {[%clk 0:00:06.7]} 49... Kxh5
{[%clk 0:00:05.3]} 50. Re5+ {[%clk 0:00:06.8]} 50... Kxg6 {[%clk 0:00:05.2]} 51.
Rxc5 {[%clk 0:00:07.4]} 51... b4 {[%clk 0:00:06.1]} 52. cxb4 {[%clk 0:00:05.3]}
52... Kf6 {[%clk 0:00:06]} 53. Rd5 {[%clk 0:00:05.1]} 53... Ke6 {[%clk
0:00:06.2]} 54. Rd1 {[%clk 0:00:05.6]} 54... Rf4 {[%clk 0:00:05.4]} 55. Kc3
{[%clk 0:00:04.9]} 55... Rf3+ {[%clk 0:00:05.9]} 56. Kb2 {[%clk 0:00:04.3]}
56... Ke5 {[%clk 0:00:05.4]} 57. Ka3 {[%clk 0:00:03.3]} 57... Rf8 {[%clk
0:00:05.4]} 58. b5 {[%clk 0:00:03.7]} 58... Ra8+ {[%clk 0:00:04.2]} 59. Kb4
{[%clk 0:00:04.2]} 59... Rb8 {[%clk 0:00:04]} 60. Kc5 {[%clk 0:00:04.7]} 60...
Rc8+ {[%clk 0:00:04.1]} 61. Kb6 {[%clk 0:00:05.1]} 61... Rd8 {[%clk 0:00:04.8]}
62. Rxd8 {[%clk 0:00:04.5]} 1-0